[Event "British Rapidplay Championship 2023"]
[Site "Mercure Bradford, Bankfield Hotel"]
[Date "2023.04.16"]
[Round "7.1"]
[White "Makkar, Rajat"]
[Black "Ghasi, Ameet K"]
[Result "0-1"]
[TimeControl "15 minutes plus 10 seconds per move"]
[WhiteElo "2297"]
[BlackElo "2631"]

1. d4 {[%clk 00:15:13]} {[%emt 00:00:07]} Nf6 {[%clk 00:14:38]} {[%emt
00:00:42]} 2. Nc3 {[%clk 00:15:21]} {[%emt 00:00:02]} d5 {[%clk 00:14:04]}
{[%emt 00:00:44]} 3. Bf4 {[%clk 00:15:30]} {[%emt 00:00:02]} e6 {[%clk
00:13:42]} {[%emt 00:00:32]} 4. Nb5 {[%clk 00:15:38]} {[%emt 00:00:02]} Bb4+
{[%clk 00:12:18]} {[%emt 00:01:33]} 5. c3 {[%clk 00:15:47]} {[%emt 00:00:02]}
Ba5 {[%clk 00:12:24]} {[%emt 00:00:03]} 6. b4 {[%clk 00:15:50]} {[%emt
00:00:07]} Bb6 {[%clk 00:12:33]} 7. a4 {[%clk 00:15:40]} {[%emt 00:00:20]} a5
{[%clk 00:12:25]} {[%emt 00:00:19]} 8. e3 {[%clk 00:14:48]} {[%emt 00:01:01]}
O-O {[%clk 00:11:37]} {[%emt 00:00:58]} 9. Nf3 {[%clk 00:14:37]} {[%emt
00:00:22]} Qe7 {[%clk 00:09:03]} {[%emt 00:02:44]} 10. Qb3 {[%clk 00:14:29]}
{[%emt 00:00:17]} Nc6 {[%clk 00:08:16]} {[%emt 00:00:58]} 11. Rb1 {[%clk
00:14:22]} {[%emt 00:00:16]} Nh5 {[%clk 00:06:38]} {[%emt 00:01:48]} 12. bxa5
{[%clk 00:13:47]} {[%emt 00:00:46]} Nxa5 {[%clk 00:06:21]} {[%emt 00:00:26]} 13.
Qa3 {[%clk 00:11:24]} {[%emt 00:02:34]} Qxa3 {[%clk 00:06:29]} {[%emt
00:00:01]} 14. Nxa3 {[%clk 00:11:33]} {[%emt 00:00:02]} Nxf4 {[%clk 00:06:38]}
15. exf4 {[%clk 00:11:42]} {[%emt 00:00:01]} Nc6 {[%clk 00:06:28]} {[%emt
00:00:21]} 16. Bb5 {[%clk 00:11:41]} {[%emt 00:00:11]} Ne7 {[%clk 00:06:00]}
{[%emt 00:00:37]} 17. Kd2 {[%clk 00:10:36]} {[%emt 00:01:15]} Nf5 {[%clk
00:05:28]} {[%emt 00:00:42]} 18. Nc2 {[%clk 00:06:23]} {[%emt 00:04:23]} Nd6
{[%clk 00:05:27]} {[%emt 00:00:12]} 19. Rb3 {[%clk 00:06:15]} {[%emt 00:00:18]}
Ne4+ {[%clk 00:03:55]} {[%emt 00:01:41]} 20. Ke3 {[%clk 00:06:20]} {[%emt
00:00:05]} Ba5 {[%clk 00:04:05]} 21. c4 {[%clk 00:05:34]} {[%emt 00:00:57]} c6
{[%clk 00:04:02]} {[%emt 00:00:12]} 22. cxd5 {[%clk 00:05:42]} {[%emt
00:00:02]} cxb5 {[%clk 00:02:45]} {[%emt 00:01:27]} 23. dxe6 {[%clk 00:05:22]}
{[%emt 00:00:29]} Bxe6 {[%clk 00:02:50]} {[%emt 00:00:06]} 24. Rxb5 {[%clk
00:05:31]} {[%emt 00:00:01]} Nd6 {[%clk 00:02:56]} {[%emt 00:00:04]} 25. Rbb1
{[%clk 00:05:21]} {[%emt 00:00:21]} Bf5 {[%clk 00:02:55]} {[%emt 00:00:10]} 26.
Rhc1 {[%clk 00:05:12]} {[%emt 00:00:19]} Rfe8+ {[%clk 00:02:58]} {[%emt
00:00:07]} 27. Ne5 {[%clk 00:05:21]} {[%emt 00:00:01]} f6 {[%clk 00:03:07]} 28.
Kf3 {[%clk 00:05:09]} {[%emt 00:00:22]} fxe5 {[%clk 00:03:14]} {[%emt
00:00:04]} 29. dxe5 {[%clk 00:05:08]} {[%emt 00:00:10]} Nc4 {[%clk 00:03:19]}
{[%emt 00:00:06]} 30. Rxb7 {[%clk 00:04:52]} {[%emt 00:00:25]} Nd2+ {[%clk
00:02:44]} {[%emt 00:00:45]} 31. Ke2 {[%clk 00:04:21]} {[%emt 00:00:42]} Rad8
{[%clk 00:02:23]} {[%emt 00:00:30]} 32. f3 {[%clk 00:03:46]} {[%emt 00:00:45]}
Bd3+ {[%clk 00:02:08]} {[%emt 00:00:25]} 33. Kf2 {[%clk 00:03:54]} {[%emt
00:00:03]} Rc8 {[%clk 00:02:06]} {[%emt 00:00:12]} 34. Rb2 {[%clk 00:03:21]}
{[%emt 00:00:43]} Rc7 {[%clk 00:01:30]} {[%emt 00:00:45]} 35. Ne1 {[%clk
00:02:30]} {[%emt 00:01:01]} Rxc1 {[%clk 00:01:38]} {[%emt 00:00:02]} 36. Nxd3
{[%clk 00:02:39]} {[%emt 00:00:01]} Rc4 {[%clk 00:01:20]} {[%emt 00:00:27]} 37.
Ke2 {[%clk 00:02:37]} {[%emt 00:00:14]} Rxa4 {[%clk 00:01:17]} {[%emt
00:00:13]} 38. g4 {[%clk 00:02:15]} {[%emt 00:00:31]} Rd4 {[%clk 00:01:10]}
{[%emt 00:00:18]} 39. Rb5 {[%clk 00:02:05]} {[%emt 00:00:20]} Nc4 {[%clk
00:01:18]} {[%emt 00:00:01]} 40. f5 {[%clk 00:01:55]} {[%emt 00:00:21]} Nxe5
{[%clk 00:00:58]} {[%emt 00:00:29]} 41. Rxe5 {[%clk 00:01:51]} {[%emt
00:00:14]} Rxe5+ {[%clk 00:01:07]} 42. Nxe5 {[%clk 00:02:00]} {[%emt 00:00:01]}
Bc7 {[%clk 00:01:07]} {[%emt 00:00:10]} 0-1

[Event "British Rapidplay Championship 2023"]
[Site "Mercure Bradford, Bankfield Hotel"]
[Date "2023.04.16"]
[Round "7.2"]
[White "Gormally, Daniel W"]
[Black "Hryshchenko, Kamila"]
[Result "1/2-1/2"]
[TimeControl "15 minutes plus 10 seconds per move"]
[WhiteElo "2570"]
[BlackElo "2019"]

1. e4 {[%clk 00:15:17]} {[%emt 00:00:01]} d6 {[%clk 00:15:19]} {[%emt
00:00:02]} 2. d4 {[%clk 00:15:26]} {[%emt 00:00:01]} g6 {[%clk 00:15:28]}
{[%emt 00:00:02]} 3. Nc3 {[%clk 00:15:34]} {[%emt 00:00:01]} Bg7 {[%clk
00:15:36]} {[%emt 00:00:02]} 4. Be3 {[%clk 00:15:41]} {[%emt 00:00:02]} a6
{[%clk 00:15:43]} {[%emt 00:00:04]} 5. Qd2 {[%clk 00:15:49]} {[%emt 00:00:02]}
Nd7 {[%clk 00:15:51]} {[%emt 00:00:03]} 6. h4 {[%clk 00:15:57]} {[%emt
00:00:01]} h6 {[%clk 00:15:59]} {[%emt 00:00:02]} 7. O-O-O {[%clk 00:16:03]}
{[%emt 00:00:05]} b5 {[%clk 00:16:07]} {[%emt 00:00:01]} 8. f3 {[%clk
00:16:11]} {[%emt 00:00:02]} c6 {[%clk 00:15:47]} {[%emt 00:00:30]} 9. Kb1
{[%clk 00:16:08]} {[%emt 00:00:13]} Qc7 {[%clk 00:15:55]} {[%emt 00:00:02]} 10.
Nge2 {[%clk 00:16:01]} {[%emt 00:00:17]} Nb6 {[%clk 00:15:38]} {[%emt
00:00:27]} 11. Ng3 {[%clk 00:16:10]} {[%emt 00:00:01]} b4 {[%clk 00:15:43]}
{[%emt 00:00:05]} 12. Nce2 {[%clk 00:16:19]} {[%emt 00:00:01]} Nc4 {[%clk
00:15:50]} {[%emt 00:00:03]} 13. Qd3 {[%clk 00:16:28]} Nxe3 {[%clk 00:15:38]}
{[%emt 00:00:23]} 14. Qxe3 {[%clk 00:16:37]} {[%emt 00:00:02]} Qa5 {[%clk
00:15:08]} {[%emt 00:00:40]} 15. Nc1 {[%clk 00:16:23]} {[%emt 00:00:23]} Nf6
{[%clk 00:14:55]} {[%emt 00:00:22]} 16. Be2 {[%clk 00:15:53]} {[%emt 00:00:41]}
h5 {[%clk 00:14:30]} {[%emt 00:00:36]} 17. f4 {[%clk 00:14:59]} {[%emt
00:01:03]} Ng4 {[%clk 00:11:43]} {[%emt 00:02:57]} 18. Bxg4 {[%clk 00:15:06]}
{[%emt 00:00:03]} Bxg4 {[%clk 00:11:48]} {[%emt 00:00:05]} 19. Rd2 {[%clk
00:15:15]} O-O {[%clk 00:11:17]} {[%emt 00:00:41]} 20. e5 {[%clk 00:13:12]}
{[%emt 00:02:13]} Rac8 {[%clk 00:10:35]} {[%emt 00:00:52]} 21. Ne4 {[%clk
00:12:22]} {[%emt 00:01:00]} c5 {[%clk 00:10:18]} {[%emt 00:00:27]} 22. dxc5
{[%clk 00:11:49]} {[%emt 00:00:43]} dxe5 {[%clk 00:10:11]} {[%emt 00:00:17]} 23.
fxe5 {[%clk 00:11:18]} {[%emt 00:00:41]} Bxe5 {[%clk 00:07:52]} {[%emt
00:02:29]} 24. Nf2 {[%clk 00:11:14]} {[%emt 00:00:14]} Bf6 {[%clk 00:07:52]}
{[%emt 00:00:11]} 25. Nxg4 {[%clk 00:11:09]} {[%emt 00:00:15]} hxg4 {[%clk
00:08:00]} {[%emt 00:00:01]} 26. Nd3 {[%clk 00:08:57]} {[%emt 00:02:23]} Kg7
{[%clk 00:05:12]} {[%emt 00:02:57]} 27. h5 {[%clk 00:08:53]} {[%emt 00:00:14]}
Rh8 {[%clk 00:05:12]} {[%emt 00:00:10]} 28. h6+ {[%clk 00:08:46]} {[%emt
00:00:17]} Kh7 {[%clk 00:05:05]} {[%emt 00:00:17]} 29. Rf2 {[%clk 00:08:31]}
{[%emt 00:00:24]} Rhd8 {[%clk 00:04:50]} {[%emt 00:00:26]} 30. Rf4 {[%clk
00:07:18]} {[%emt 00:01:23]} Rxd3 {[%clk 00:02:39]} {[%emt 00:02:21]} 31. Qxd3
{[%clk 00:06:49]} {[%emt 00:00:39]} Rxc5 {[%clk 00:02:01]} {[%emt 00:00:48]} 32.
Qb3 {[%clk 00:06:14]} {[%emt 00:00:45]} Rd5 {[%clk 00:02:09]} {[%emt 00:00:02]}
33. Rxb4 {[%clk 00:05:28]} {[%emt 00:00:55]} Qd8 {[%clk 00:01:18]} {[%emt
00:01:02]} 34. a3 {[%clk 00:05:37]} {[%emt 00:00:01]} e6 {[%clk 00:01:13]}
{[%emt 00:00:16]} 35. Rb7 {[%clk 00:04:53]} {[%emt 00:00:53]} Rd1+ {[%clk
00:00:47]} {[%emt 00:00:36]} 36. Rxd1 {[%clk 00:04:55]} Qxd1+ {[%clk 00:00:56]}
{[%emt 00:00:10]} 37. Ka2 {[%clk 00:05:04]} {[%emt 00:00:01]} Kxh6 {[%clk
00:01:01]} {[%emt 00:00:04]} 38. Rxf7 {[%clk 00:05:07]} {[%emt 00:00:07]} Qd4
{[%clk 00:01:02]} {[%emt 00:00:10]} 39. c3 {[%clk 00:04:37]} {[%emt 00:00:40]}
Qe5 {[%clk 00:00:57]} {[%emt 00:00:15]} 40. Qc4 {[%clk 00:04:41]} {[%emt
00:00:06]} g3 {[%clk 00:00:56]} {[%emt 00:00:11]} 41. Rd7 {[%clk 00:04:34]}
{[%emt 00:00:17]} a5 {[%clk 00:00:53]} {[%emt 00:00:14]} 42. Rc7 {[%clk
00:04:07]} {[%emt 00:00:36]} Qf5 {[%clk 00:00:47]} {[%emt 00:00:16]} 43. Rc5
{[%clk 00:03:49]} {[%emt 00:00:28]} Qf2 {[%clk 00:00:55]} {[%emt 00:00:02]} 44.
Qxe6 {[%clk 00:03:43]} {[%emt 00:00:15]} Qxc5 {[%clk 00:00:49]} {[%emt
00:00:17]} 45. Qxf6 {[%clk 00:03:48]} {[%emt 00:00:06]} Qd5+ {[%clk 00:00:49]}
{[%emt 00:00:10]} 46. Ka1 {[%clk 00:03:56]} {[%emt 00:00:01]} Qd1+ {[%clk
00:00:56]} {[%emt 00:00:03]} 47. Ka2 {[%clk 00:04:05]} Qd5+ {[%clk 00:01:04]}
{[%emt 00:00:02]} 48. Ka1 {[%clk 00:04:13]} {[%emt 00:00:02]} 1/2-1/2

[Event "British Rapidplay Championship 2023"]
[Site "Mercure Bradford, Bankfield Hotel"]
[Date "2023.04.16"]
[Round "7.3"]
[White "Senior, Gary"]
[Black "Cook, Phil"]
[Result "1/2-1/2"]
[TimeControl "15 minutes plus 10 seconds per move"]
[WhiteElo "1911"]
[BlackElo "2126"]

1. e4 {[%clk 00:15:19]} d6 {[%clk 00:15:17]} {[%emt 00:00:03]} 2. d4 {[%clk
00:15:24]} {[%emt 00:00:04]} Nf6 {[%clk 00:15:25]} {[%emt 00:00:03]} 3. Nc3
{[%clk 00:15:32]} {[%emt 00:00:02]} e5 {[%clk 00:15:33]} {[%emt 00:00:02]} 4.
Nge2 {[%clk 00:15:11]} {[%emt 00:00:31]} exd4 {[%clk 00:15:32]} {[%emt
00:00:12]} 5. Nxd4 {[%clk 00:15:13]} {[%emt 00:00:07]} Be7 {[%clk 00:15:38]}
{[%emt 00:00:04]} 6. Be2 {[%clk 00:14:38]} {[%emt 00:00:44]} O-O {[%clk
00:15:43]} {[%emt 00:00:06]} 7. Be3 {[%clk 00:14:32]} {[%emt 00:00:15]} Re8
{[%clk 00:15:30]} {[%emt 00:00:24]} 8. Qd2 {[%clk 00:13:24]} {[%emt 00:01:17]}
d5 {[%clk 00:13:28]} {[%emt 00:02:13]} 9. exd5 {[%clk 00:11:55]} {[%emt
00:01:39]} Bb4 {[%clk 00:12:36]} {[%emt 00:01:02]} 10. Bf3 {[%clk 00:10:42]}
{[%emt 00:01:23]} Bxc3 {[%clk 00:10:33]} {[%emt 00:02:14]} 11. Qxc3 {[%clk
00:10:16]} {[%emt 00:00:35]} Nxd5 {[%clk 00:10:36]} {[%emt 00:00:08]} 12. Bxd5
{[%clk 00:10:16]} {[%emt 00:00:10]} Qxd5 {[%clk 00:10:43]} {[%emt 00:00:03]} 13.
O-O {[%clk 00:09:23]} {[%emt 00:01:01]} Nc6 {[%clk 00:08:06]} {[%emt 00:02:48]}
14. a4 {[%clk 00:06:53]} {[%emt 00:02:40]} a6 {[%clk 00:05:48]} {[%emt
00:02:28]} 15. Nxc6 {[%clk 00:06:35]} {[%emt 00:00:28]} Qxc6 {[%clk 00:05:54]}
{[%emt 00:00:05]} 16. Qxc6 {[%clk 00:06:41]} {[%emt 00:00:04]} bxc6 {[%clk
00:06:01]} {[%emt 00:00:02]} 17. Rfe1 {[%clk 00:05:14]} {[%emt 00:01:37]} Bf5
{[%clk 00:05:42]} {[%emt 00:00:28]} 1/2-1/2

[Event "British Rapidplay Championship 2023"]
[Site "Mercure Bradford, Bankfield Hotel"]
[Date "2023.04.16"]
[Round "7.4"]
[White "Lau, Luke"]
[Black "Dong, Bao Nghia"]
[Result "0-1"]
[TimeControl "15 minutes plus 10 seconds per move"]
[WhiteElo "1917"]
[BlackElo "2331"]

1. e4 {[%clk 00:15:16]} {[%emt 00:00:04]} e6 {[%clk 00:15:17]} {[%emt
00:00:03]} 2. d4 {[%clk 00:15:24]} {[%emt 00:00:03]} d5 {[%clk 00:15:26]}
{[%emt 00:00:01]} 3. Nd2 {[%clk 00:15:32]} c5 {[%clk 00:15:35]} {[%emt
00:00:01]} 4. Ngf3 {[%clk 00:15:41]} {[%emt 00:00:02]} cxd4 {[%clk 00:15:43]}
{[%emt 00:00:01]} 5. exd5 {[%clk 00:15:44]} {[%emt 00:00:06]} Qxd5 {[%clk
00:15:52]} {[%emt 00:00:02]} 6. Bc4 {[%clk 00:15:53]} {[%emt 00:00:01]} Qd6
{[%clk 00:16:01]} {[%emt 00:00:02]} 7. O-O {[%clk 00:15:49]} {[%emt 00:00:13]}
Nf6 {[%clk 00:16:09]} {[%emt 00:00:02]} 8. Nb3 {[%clk 00:15:57]} {[%emt
00:00:02]} Nc6 {[%clk 00:16:17]} {[%emt 00:00:02]} 9. Nbxd4 {[%clk 00:15:56]}
{[%emt 00:00:11]} Nxd4 {[%clk 00:16:25]} {[%emt 00:00:02]} 10. Qxd4 {[%clk
00:15:43]} {[%emt 00:00:23]} Bd7 {[%clk 00:16:30]} {[%emt 00:00:05]} 11. Bf4
{[%clk 00:14:07]} {[%emt 00:01:46]} Qxd4 {[%clk 00:16:33]} {[%emt 00:00:07]} 12.
Nxd4 {[%clk 00:14:16]} {[%emt 00:00:02]} Rc8 {[%clk 00:16:38]} {[%emt
00:00:04]} 13. Bb3 {[%clk 00:14:21]} {[%emt 00:00:06]} Bc5 {[%clk 00:16:43]}
{[%emt 00:00:04]} 14. Nf3 {[%clk 00:14:13]} {[%emt 00:00:17]} O-O {[%clk
00:16:44]} {[%emt 00:00:10]} 15. Rad1 {[%clk 00:13:43]} {[%emt 00:00:40]} Bc6
{[%clk 00:16:40]} {[%emt 00:00:15]} 16. Ne5 {[%clk 00:11:59]} {[%emt 00:01:53]}
Be4 {[%clk 00:16:45]} {[%emt 00:00:05]} 17. Nd7 {[%clk 00:10:34]} {[%emt
00:01:35]} Nxd7 {[%clk 00:16:53]} {[%emt 00:00:02]} 18. Rxd7 {[%clk 00:10:43]}
{[%emt 00:00:01]} h6 {[%clk 00:15:45]} {[%emt 00:01:18]} 19. c3 {[%clk
00:10:04]} {[%emt 00:00:50]} b5 {[%clk 00:15:35]} {[%emt 00:00:19]} 20. Rfd1
{[%clk 00:08:12]} {[%emt 00:02:02]} a5 {[%clk 00:15:38]} {[%emt 00:00:07]} 21.
a3 {[%clk 00:08:03]} {[%emt 00:00:19]} a4 {[%clk 00:15:04]} {[%emt 00:00:44]}
22. Ba2 {[%clk 00:08:13]} Bc2 {[%clk 00:15:13]} {[%emt 00:00:01]} 23. Rc1
{[%clk 00:07:14]} {[%emt 00:01:08]} Rfd8 {[%clk 00:14:43]} {[%emt 00:00:40]} 24.
Rxd8+ {[%clk 00:06:23]} {[%emt 00:01:02]} Rxd8 {[%clk 00:14:51]} {[%emt
00:00:02]} 25. h3 {[%clk 00:06:17]} {[%emt 00:00:15]} Bb3 {[%clk 00:13:07]}
{[%emt 00:01:54]} 26. Bxb3 {[%clk 00:05:09]} {[%emt 00:01:18]} axb3 {[%clk
00:13:16]} {[%emt 00:00:02]} 27. Re1 {[%clk 00:04:16]} {[%emt 00:01:03]} g5
{[%clk 00:13:01]} {[%emt 00:00:24]} 28. Bc1 {[%clk 00:04:25]} {[%emt 00:00:01]}
f6 {[%clk 00:12:53]} {[%emt 00:00:18]} 29. Kf1 {[%clk 00:04:31]} {[%emt
00:00:03]} e5 {[%clk 00:12:51]} {[%emt 00:00:13]} 30. Be3 {[%clk 00:04:13]}
{[%emt 00:00:28]} Bf8 {[%clk 00:10:56]} {[%emt 00:02:05]} 31. g4 {[%clk
00:04:09]} {[%emt 00:00:15]} Kf7 {[%clk 00:11:05]} {[%emt 00:00:01]} 32. Ke2
{[%clk 00:04:17]} {[%emt 00:00:02]} Ke6 {[%clk 00:11:14]} {[%emt 00:00:01]} 33.
Rd1 {[%clk 00:04:25]} {[%emt 00:00:02]} Rxd1 {[%clk 00:11:22]} {[%emt
00:00:02]} 34. Kxd1 {[%clk 00:04:33]} {[%emt 00:00:01]} f5 {[%clk 00:11:21]}
{[%emt 00:00:11]} 35. f3 {[%clk 00:04:17]} {[%emt 00:00:26]} f4 {[%clk
00:11:30]} {[%emt 00:00:02]} 36. Bc1 {[%clk 00:01:24]} {[%emt 00:03:03]} Kd5
{[%clk 00:11:36]} {[%emt 00:00:04]} 37. Ke2 {[%clk 00:01:28]} {[%emt 00:00:06]}
e4 {[%clk 00:11:44]} {[%emt 00:00:01]} 38. fxe4+ {[%clk 00:00:49]} {[%emt
00:00:49]} Kxe4 {[%clk 00:11:52]} {[%emt 00:00:02]} 39. Bd2 {[%clk 00:00:31]}
{[%emt 00:00:29]} Bc5 {[%clk 00:11:47]} {[%emt 00:00:13]} 40. Be1 {[%clk
00:00:15]} {[%emt 00:00:27]} f3+ {[%clk 00:11:22]} {[%emt 00:00:36]} 41. Kf1
{[%clk 00:00:23]} {[%emt 00:00:02]} Be3 {[%clk 00:11:30]} {[%emt 00:00:01]} 42.
c4 {[%clk 00:00:20]} {[%emt 00:00:14]} bxc4 {[%clk 00:11:39]} {[%emt 00:00:01]}
43. Bc3 {[%clk 00:00:27]} {[%emt 00:00:04]} Bd4 {[%clk 00:11:44]} {[%emt
00:00:04]} 44. Bxd4 {[%clk 00:00:14]} {[%emt 00:00:23]} Kxd4 {[%clk 00:11:52]}
{[%emt 00:00:02]} 45. a4 {[%clk 00:00:21]} {[%emt 00:00:04]} Kc5 {[%clk
00:11:58]} {[%emt 00:00:03]} 46. Kf2 {[%clk 00:00:28]} {[%emt 00:00:02]} c3
{[%clk 00:12:07]} 0-1